fUSD/lending_fUSD_20251226
["ID","MTS","AMOUNT","RATE_DAILY","PERIOD"]
[399842462,1766734241361,-500.0,0.00016438,2]
[399842463,1766734241374,-500.0,0.00016438,2]
[399842464,1766734241384,-500.0,0.00016438,2]
[399842465,1766734241395,-221.63996507,0.00016438,2]
[399842466,1766734241406,-15435.28,0.00016438,2]
[399842467,1766734241417,-168.0,0.00016559,2]
[399842468,1766734241427,-1353.29999807,0.00016574,2]
[399842469,1766734241437,-335.16048283,0.0001666,2]
[399842470,1766734241447,-595.37131296,0.00016697,2]
[399842471,1766734241457,-219.8,0.00016712,2]
[399842472,1766734241467,-1000.0,0.00016731,2]
[399842473,1766734241478,-166.66,0.00016749,2]
[399842474,1766734241489,-168.0,0.00016753,2]
[399842475,1766734241499,-200.0,0.00016864,2]
[399842476,1766734241509,-168.0,0.00016877,2]
[399842477,1766734241520,-1353.29999807,0.000169,2]
[399842478,1766734241531,-2096.0,0.000169,2]
[399842479,1766734241541,-168.0,0.00016924,2]
[399842480,1766734241551,-152.0,0.00016929,3]
[399842481,1766734241563,-168.0,0.00016969,2]
[399842482,1766734241574,-202.97863194,0.00016973,2]
[399842483,1766734241584,-1383.56745154,0.00016983,2]
[399842484,1766734241594,-219.8,0.00016986,2]
[399842485,1766734241604,-63944.9699653,0.0001699,2]
[399842486,1766734241615,-188797.02512911,0.0001699,2]
[399842494,1766734244234,-35983.09933839,0.0001699,2]
[399842496,1766734244246,-3222.9644201,0.0001699,2]
[399842498,1766734244256,-923.3953479,0.0001699,2]
[399842500,1766734244267,-59093.5481849,0.0001699,2]
[399842502,1766734244276,-2867.653913,0.0001699,2]
[399842504,1766734244287,-150.0,0.00016999,2]
[399842506,1766734244297,-1115.57403938,0.00016999,5]
[399842508,1766734244307,-300.0,0.00016999,2]
[399842510,1766734244317,-150.0,0.00017,2]
[399842512,1766734244326,-363421.01282389,0.00017,2]
[399842514,1766734244338,-61627.99684615,0.00017,2]
[399842559,1766734329035,-151.0,0.00015837,2]
[399842560,1766734329046,-315112.28904439,0.00017,2]
[399842561,1766734329056,-850260.31963978,0.00017,2]
[399842562,1766734329066,-6837884.56297999,0.00017,2]
[399842563,1766734329076,-767390.9367874,0.00017,2]
[399842564,1766734329085,-288.29,0.00017,2]
[399842565,1766734329095,-7714994.12009389,0.00017,2]
[399842566,1766734329105,-778.67184898,0.00017,2]
[399842567,1766734329115,-3158272.20135793,0.00017,2]
[399842568,1766734329125,-500.0,0.00017,2]
[399842569,1766734329137,-500.0,0.00017,2]
[399842570,1766734329147,-500.0,0.00017,2]
[399842571,1766734329157,-500.0,0.00017,2]
[399842572,1766734329167,-500.0,0.00017,2]
[399842573,1766734329177,-500.0,0.00017,2]
[399842574,1766734329186,-500.0,0.00017,2]
[399842575,1766734329196,-242.23575578,0.00017,2]
[399842576,1766734329206,-1000.0,0.00017,2]
[399842577,1766734329216,-1000.0,0.00017,2]
[399842578,1766734329225,-1000.0,0.00017,2]
[399842579,1766734329234,-1000.0,0.00017,2]
[399842580,1766734329244,-1000.0,0.00017,2]
[399842581,1766734329254,-1000.0,0.00017,2]
[399842582,1766734329265,-1000.0,0.00017,2]
[399842583,1766734329275,-1000.0,0.00017,2]
[399842584,1766734329285,-1000.0,0.00017,2]
[399842585,1766734329294,-1000.0,0.00017,2]
[399842586,1766734329304,-1000.0,0.00017,2]
[399842587,1766734329313,-1000.0,0.00017,2]
[399842588,1766734329323,-1000.0,0.00017,2]
[399842589,1766734329332,-1000.0,0.00017,2]
[399842590,1766734329343,-1000.0,0.00017,2]
[399842591,1766734329352,-1000.0,0.00017,2]
[399842592,1766734329362,-1000.0,0.00017,2]
[399842593,1766734329372,-1000.0,0.00017,2]
[399842594,1766734329382,-1000.0,0.00017,2]
[399842595,1766734329393,-1000.0,0.00017,2]
[399842596,1766734329403,-1000.0,0.00017,2]
[399842597,1766734329413,-1000.0,0.00017,2]
[399842598,1766734329422,-1000.0,0.00017,2]
[399842599,1766734329432,-1000.0,0.00017,2]
[399842600,1766734329442,-1000.0,0.00017,2]
[399842601,1766734329452,-1000.0,0.00017,2]
[399842602,1766734329461,-1078.38362935,0.00017,2]
[399842603,1766734329471,-6698651.20446615,0.00017,2]
[399842604,1766734329481,-481671.52354871,0.00017,2]
[399842605,1766734329492,-264.0,0.00017,2]
[399842606,1766734329502,-150.0,0.00017,2]
[399842607,1766734329512,-212.0,0.00017,2]
[399842608,1766734329522,-150.0,0.00017,2]
[399842609,1766734329532,-170.113,0.00017,2]
[399842610,1766734329542,-170.0,0.00017,2]
[399842611,1766734329552,-150.121,0.00017,2]
[399842612,1766734329561,-150.047,0.00017,2]
[399842613,1766734329571,-150.0,0.00017,2]
[399842614,1766734329580,-150.0,0.00017,2]
[399842615,1766734329590,-150.0,0.00017,2]
[399842616,1766734329600,-2000.0,0.00017,2]
[399842617,1766734329609,-150.099,0.00017,2]
[399842618,1766734329619,-150.0,0.00017,2]
[399842619,1766734329628,-794.83134735,0.00017,2]
[399842620,1766734329638,-150.0,0.00017,2]
[399842621,1766734329648,-560.07531962,0.00017,2]
[399842622,1766734329658,-151.0,0.00017,2]
[399842623,1766734329668,-151.0,0.00017,2]
[399842624,1766734329678,-714.87,0.00017,7]
[399842625,1766734329687,-151.0,0.00017,2]
[399842626,1766734329697,-151.0,0.00017,2]
[399842627,1766734329707,-151.0,0.00017,2]
[399842628,1766734329716,-154.534609,0.00017,2]
[399842629,1766734329726,-151.0,0.00017,2]
[399842630,1766734329736,-151.0,0.00017,2]
[399842631,1766734329746,-151.0,0.00017,2]
[399842632,1766734329755,-151.0,0.00017,2]
[399842633,1766734329764,-153.538358,0.00017,2]
[399842634,1766734329774,-151.0,0.00017,2]
[399842635,1766734329783,-151.0,0.00017,2]
[399842636,1766734329792,-151.0,0.00017,2]
[399842637,1766734329802,-151.0,0.00017,2]
[399842638,1766734329811,-151.0,0.00017,2]
[399842639,1766734329820,-151.0,0.00017,2]
[399842640,1766734329830,-151.0,0.00017,2]
[399842641,1766734329839,-151.0,0.00017,2]
[399842642,1766734329848,-151.0,0.00017,2]
[399842643,1766734329859,-151.0,0.00017,2]
[399842644,1766734329868,-151.0,0.00017,2]
[399842645,1766734329878,-151.0,0.00017,2]
[399842646,1766734329888,-151.0,0.00017,2]
[399842647,1766734329897,-151.0,0.00017,2]
[399842648,1766734329907,-151.0,0.00017,2]
[399842649,1766734329917,-152.651635,0.00017,2]
[399842650,1766734329926,-1263.0,0.00017,2]
[399842651,1766734329935,-151.0,0.00017,2]
[399842652,1766734329945,-151.0,0.00017,2]
[399842653,1766734329954,-151.0,0.00017,2]
[399842654,1766734329963,-165.290795,0.00017,2]
[399842655,1766734329972,-151.0,0.00017,2]
[399842656,1766734329981,-151.0,0.00017,2]
[399842657,1766734329990,-173.381213,0.00017,2]
[399842658,1766734329999,-151.0,0.00017,2]
[399842659,1766734330009,-151.0,0.00017,2]
[399842660,1766734330019,-151.0,0.00017,2]
[399842661,1766734330028,-151.0,0.00017,2]
[399842662,1766734330038,-151.0,0.00017,2]
[399842663,1766734330048,-151.0,0.00017,2]
[399842664,1766734330058,-151.0,0.00017,2]
[399842665,1766734330068,-151.0,0.00017,2]
[399842666,1766734330077,-151.0,0.00017,2]
[399842667,1766734330087,-173.189682,0.00017,2]
[399842668,1766734330096,-151.0,0.00017,2]
[399842669,1766734330106,-151.0,0.00017,2]
[399842670,1766734330116,-151.0,0.00017,2]
[399842671,1766734330126,-151.0,0.00017,2]
[399842672,1766734330138,-213.179221,0.00017,2]
[399842673,1766734330148,-166.7,0.00017,2]
[399842674,1766734330157,-151.0,0.00017,2]
[399842675,1766734330167,-151.0,0.00017,2]
[399842676,1766734330177,-151.0,0.00017,2]
[399842677,1766734330187,-151.0,0.00017,2]
[399842678,1766734330196,-151.0,0.00017,2]
[399842679,1766734330208,-151.0,0.00017,2]
[399842680,1766734330218,-151.0,0.00017,2]
[399842681,1766734330227,-151.0,0.00017,2]
[399842682,1766734330239,-151.0,0.00017,2]
[399842683,1766734330249,-151.0,0.00017,2]
[399842684,1766734330259,-151.0,0.00017,2]
[399842685,1766734330268,-151.0,0.00017,2]
[399842686,1766734330278,-151.0,0.00017,2]
[399842687,1766734330288,-151.0,0.00017,2]
[399842688,1766734330298,-151.0,0.00017,2]
[399842689,1766734330307,-151.0,0.00017,2]
[399842690,1766734330317,-237.702889,0.00017,2]
[399842691,1766734330327,-151.0,0.00017,2]
[399842692,1766734330337,-151.0,0.00017,2]
[399842693,1766734330347,-151.0,0.00017,2]
[399842694,1766734330356,-151.0,0.00017,2]
[399842695,1766734330366,-151.0,0.00017,2]
[399842696,1766734330375,-151.0,0.00017,2]
[399842697,1766734330385,-151.0,0.00017,2]
[399842698,1766734330395,-151.0,0.00017,2]
[399842699,1766734330405,-155.892352,0.00017,2]
[399842700,1766734330414,-4194899.39918373,0.00017,2]
[399842701,1766734330424,-151.0,0.00017,2]
[399842702,1766734330434,-151.0,0.00017,2]
[399842703,1766734330443,-151.0,0.00017,2]
[399842704,1766734330454,-151.0,0.00017,2]
[399842705,1766734330463,-151.0,0.00017,2]
[399842706,1766734330473,-151.0,0.00017,2]
[399842707,1766734330483,-151.0,0.00017,2]
[399842708,1766734330493,-153.581828,0.00017,2]
[399842709,1766734330503,-912.0,0.00017,2]
[399842710,1766734330512,-1198.0,0.00017,2]
[399842711,1766734330522,-151.0,0.00017,2]
[399842712,1766734330531,-151.0,0.00017,2]
[399842713,1766734330541,-151.0,0.00017,2]
[399842714,1766734330551,-151.0,0.00017,2]
[399842715,1766734330561,-151.0,0.00017,2]
[399842716,1766734330571,-151.0,0.00017,2]
[399842717,1766734330581,-151.0,0.00017,2]
[399842718,1766734330591,-151.0,0.00017,2]
[399842719,1766734330601,-151.0,0.00017,2]
[399842720,1766734330611,-151.0,0.00017,2]
[399842721,1766734330620,-151.0,0.00017,2]
[399842722,1766734330630,-151.0,0.00017,2]
[399842723,1766734330640,-151.0,0.00017,2]
[399842724,1766734330650,-151.0,0.00017,2]
[399842725,1766734330659,-151.0,0.00017,2]
[399842726,1766734330669,-151.0,0.00017,2]
[399842727,1766734330680,-151.0,0.00017,2]
[399842728,1766734330699,-156.352511,0.00017,2]
[399842729,1766734330721,-151.0,0.00017,2]
[399842730,1766734330742,-151.0,0.00017,2]
[399842731,1766734330763,-151.0,0.00017,2]
[399842732,1766734330785,-151.0,0.00017,2]
[399842733,1766734330806,-187.850295,0.00017,2]
[399842734,1766734330827,-563.790122,0.00017,2]
[399842735,1766734330843,-563.790122,0.00017,2]
[399842736,1766734330853,-563.790122,0.00017,2]
[399842737,1766734330863,-563.790122,0.00017,2]
[399842738,1766734330872,-563.790122,0.00017,2]
[399842739,1766734330882,-563.790122,0.00017,2]
[399842740,1766734330893,-563.790122,0.00017,2]
[399842741,1766734330903,-563.790122,0.00017,2]
[399842742,1766734330912,-563.790122,0.00017,2]
[399842743,1766734330922,-563.790122,0.00017,2]
[399842744,1766734330932,-563.790122,0.00017,2]
[399842745,1766734330941,-563.790122,0.00017,2]
[399842746,1766734330951,-563.790122,0.00017,2]
[399842747,1766734330961,-563.790122,0.00017,2]
[399842748,1766734330971,-563.790122,0.00017,2]
[399842749,1766734330981,-563.790122,0.00017,2]
[399842750,1766734330991,-563.790122,0.00017,2]
[399842751,1766734331001,-563.790122,0.00017,2]
[399842752,1766734331012,-563.790122,0.00017,2]
[399842753,1766734331022,-563.79011205,0.00017,2]
[399842754,1766734331032,-415.713176,0.00017,2]
[399842755,1766734331042,-415.713176,0.00017,2]
[399842756,1766734331051,-415.713176,0.00017,2]
[399842757,1766734331061,-415.713176,0.00017,2]
[399842758,1766734331072,-415.713176,0.00017,2]
[399842759,1766734331082,-415.713176,0.00017,2]
[399842760,1766734331091,-415.713176,0.00017,2]
[399842761,1766734331102,-415.713176,0.00017,2]
[399842762,1766734331112,-415.713176,0.00017,2]
[399842763,1766734331123,-191.235815,0.00017,2]
[399842764,1766734331135,-415.713176,0.00017,2]
[399842765,1766734331147,-191.235815,0.00017,2]
[399842766,1766734331156,-415.713176,0.00017,2]
[399842767,1766734331167,-191.235815,0.00017,2]
[399842768,1766734331178,-415.713176,0.00017,2]
[399842769,1766734331188,-191.235815,0.00017,2]
[399842770,1766734331199,-415.713176,0.00017,2]
[399842771,1766734331210,-191.235815,0.00017,2]
[399842772,1766734331220,-415.713176,0.00017,2]
[399842773,1766734331231,-191.235815,0.00017,2]
[399842774,1766734331241,-415.713176,0.00017,2]
[399842775,1766734331251,-191.235815,0.00017,2]
[399842776,1766734331265,-415.713176,0.00017,2]
[399842777,1766734331275,-191.235815,0.00017,2]
[399842778,1766734331285,-191.235815,0.00017,2]
[399842779,1766734331295,-191.235815,0.00017,2]
[399842780,1766734331306,-191.235815,0.00017,2]
[399842781,1766734331316,-415.713176,0.00017,2]
[399842782,1766734331327,-191.235815,0.00017,2]
[399842783,1766734331336,-191.235815,0.00017,2]
[399842784,1766734331347,-191.235815,0.00017,2]
[399842785,1766734331357,-191.235815,0.00017,2]
[399842786,1766734331367,-415.713176,0.00017,2]
[399842787,1766734331378,-191.235815,0.00017,2]
[399842788,1766734331388,-415.713176,0.00017,2]
[399842789,1766734331399,-191.235815,0.00017,2]
[399842790,1766734331409,-415.713183,0.00017,2]
[399842791,1766734331420,-191.235815,0.00017,2]
[399842792,1766734331430,-191.235815,0.00017,2]
[399842793,1766734331440,-191.235812,0.00017,2]
[399842794,1766734331451,-151.0,0.00017,2]
[399842795,1766734331461,-151.0,0.00017,2]
[399842796,1766734331471,-151.0,0.00017,2]
[399842797,1766734331482,-151.0,0.00017,2]
[399842798,1766734331492,-151.0,0.00017,2]
[399842799,1766734331503,-151.0,0.00017,2]
[399842800,1766734331514,-151.0,0.00017,2]
[399842801,1766734331524,-151.0,0.00017,2]
[399842802,1766734331535,-151.0,0.00017,2]
[399842803,1766734331545,-151.0,0.00017,2]
[399842804,1766734331556,-151.0,0.00017,2]
[399842805,1766734331566,-151.0,0.00017,2]
[399842806,1766734331577,-151.0,0.00017,2]
[399842807,1766734331587,-151.0,0.00017,2]
[399842808,1766734331598,-151.0,0.00017,2]
[399842809,1766734331609,-151.0,0.00017,2]
[399842810,1766734331619,-163.396256,0.00017,2]
[399842811,1766734331629,-227.245671,0.00017,2]
[399842812,1766734331639,-227.245671,0.00017,2]
[399842813,1766734331649,-227.245671,0.00017,2]
[399842814,1766734331660,-227.245671,0.00017,2]
[399842815,1766734331670,-227.245671,0.00017,2]
[399842816,1766734331680,-227.245671,0.00017,2]
[399842817,1766734331691,-227.245671,0.00017,2]
[399842818,1766734331702,-227.245671,0.00017,2]
[399842819,1766734331712,-227.245671,0.00017,2]
[399842820,1766734331721,-227.245671,0.00017,2]
[399842821,1766734331732,-227.245671,0.00017,2]
[399842822,1766734331742,-227.245671,0.00017,2]
[399842823,1766734331752,-227.245671,0.00017,2]
[399842824,1766734331762,-227.245671,0.00017,2]
[399842825,1766734331976,-227.245671,0.00017,2]
[399842826,1766734331986,-227.245671,0.00017,2]
[399842827,1766734331995,-227.245671,0.00017,2]
[399842828,1766734332006,-227.245671,0.00017,2]
[399842829,1766734332015,-227.245671,0.00017,2]
[399842830,1766734332024,-227.245677,0.00017,2]
[399842831,1766734332034,-604.838292,0.00017,2]
[399842832,1766734332043,-604.838292,0.00017,2]
[399842833,1766734332053,-604.838292,0.00017,2]
[399842834,1766734332062,-604.838292,0.00017,2]
[399842835,1766734332071,-604.838292,0.00017,2]
[399842836,1766734332081,-604.838292,0.00017,2]
[399842837,1766734332090,-604.838292,0.00017,2]
[399842838,1766734332100,-604.838292,0.00017,2]
[399842839,1766734332110,-604.838292,0.00017,2]
[399842840,1766734332119,-604.838292,0.00017,2]
[399842841,1766734332132,-604.838292,0.00017,2]
[399842842,1766734332142,-604.838292,0.00017,2]
[399842843,1766734332153,-604.838292,0.00017,2]
[399842844,1766734332163,-604.838292,0.00017,2]
[399842845,1766734332175,-604.838292,0.00017,2]
[399842846,1766734332185,-604.838292,0.00017,2]
[399842847,1766734332196,-604.838292,0.00017,2]
[399842848,1766734332207,-604.838292,0.00017,2]
[399842849,1766734332217,-604.838292,0.00017,2]
[399842850,1766734332227,-604.838286,0.00017,2]
[399842851,1766734332237,-151.0,0.00017,2]
[399842852,1766734332247,-151.0,0.00017,2]
[399842853,1766734332257,-151.0,0.00017,2]
[399842854,1766734332267,-151.0,0.00017,2]
[399842855,1766734332277,-151.0,0.00017,2]
[399842856,1766734332286,-151.0,0.00017,2]
[399842857,1766734332296,-151.0,0.00017,2]
[399842858,1766734332307,-151.0,0.00017,2]
[399842859,1766734332316,-151.0,0.00017,2]
[399842860,1766734332327,-151.0,0.00017,2]
[399842861,1766734332336,-233.37032883,0.00017,2]
[399842862,1766734332346,-797.969039,0.00017,2]
[399842863,1766734332356,-797.969039,0.00017,2]
[399842864,1766734332365,-797.969039,0.00017,2]
[399842865,1766734332375,-797.969039,0.00017,2]
[399842866,1766734332384,-797.969039,0.00017,2]
[399842867,1766734332395,-797.969039,0.00017,2]
[399842868,1766734332405,-797.969039,0.00017,2]
[399842869,1766734332414,-797.969039,0.00017,2]
[399842870,1766734332424,-797.969039,0.00017,2]
[399842871,1766734332434,-797.969039,0.00017,2]
[399842872,1766734332444,-797.969039,0.00017,2]
[399842873,1766734332454,-797.969039,0.00017,2]
[399842874,1766734332464,-797.969039,0.00017,2]
[399842875,1766734332474,-797.969039,0.00017,2]
[399842876,1766734332483,-797.969039,0.00017,2]
[399842877,1766734332493,-797.969039,0.00017,2]
[399842878,1766734332503,-797.969039,0.00017,2]
[399842879,1766734332513,-797.969039,0.00017,2]
[399842880,1766734332522,-797.969039,0.00017,2]
[399842881,1766734332532,-797.969032,0.00017,2]
[399842882,1766734332542,-151.0,0.00017,2]
[399842883,1766734332551,-151.0,0.00017,2]
[399842884,1766734332561,-151.0,0.00017,2]
[399842885,1766734332571,-151.0,0.00017,2]
[399842886,1766734332580,-151.0,0.00017,2]
[399842887,1766734332590,-151.0,0.00017,2]
[399842888,1766734332599,-151.0,0.00017,2]
[399842889,1766734332608,-284.24465,0.00017,2]
[399842890,1766734332619,-3152.0,0.00017,2]
[399842891,1766734332629,-1330.846,0.00017,2]
[399842892,1766734332639,-250.0,0.00017,2]
[399842893,1766734332649,-2430.0,0.00017,2]
[399842894,1766734332661,-4808.0,0.00017,2]
[399842895,1766734332671,-153.737153,0.00017,2]
[399842896,1766734332681,-153.737153,0.00017,2]
[399842897,1766734332691,-153.737153,0.00017,2]
[399842898,1766734332701,-153.737153,0.00017,2]
[399842899,1766734332711,-153.737153,0.00017,2]
[399842900,1766734332720,-153.737153,0.00017,2]
[399842901,1766734332730,-153.737153,0.00017,2]
[399842902,1766734332740,-153.737153,0.00017,2]
[399842903,1766734332750,-153.737153,0.00017,2]
[399842904,1766734332759,-153.737153,0.00017,2]
[399842905,1766734332769,-153.737153,0.00017,2]
[399842906,1766734332778,-153.737153,0.00017,2]
[399842907,1766734332787,-153.737153,0.00017,2]
[399842908,1766734332796,-153.737153,0.00017,2]
[399842909,1766734332806,-153.737153,0.00017,2]
[399842910,1766734332816,-153.737153,0.00017,2]
[399842911,1766734332826,-153.737153,0.00017,2]
[399842912,1766734332835,-153.737153,0.00017,2]
[399842913,1766734332845,-3459.0,0.00017,2]
[399842914,1766734332854,-153.737153,0.00017,2]
[399842915,1766734332864,-153.737158,0.00017,2]
[399842916,1766734332875,-447.963702,0.00017,2]
[399842917,1766734332884,-447.963702,0.00017,2]
[399842918,1766734332893,-447.963702,0.00017,2]
[399842919,1766734332903,-447.963702,0.00017,2]
[399842920,1766734332913,-447.963702,0.00017,2]
[399842921,1766734332923,-447.963702,0.00017,2]
[399842922,1766734332933,-447.963702,0.00017,2]
[399842923,1766734332943,-978.6353892,0.00017002,2]
[399842924,1766734332953,-2991.125658,0.0001701,2]
[399842925,1766734332963,-168.0,0.00017013,2]
[399842926,1766734332973,-709.91,0.00017029,2]
[399842927,1766734332983,-540.0,0.00017042,2]
[399842928,1766734332992,-168.0,0.00017071,2]
[399842929,1766734333002,-1000.0,0.00017096,2]
[399842930,1766734333012,-787.0,0.00017098,2]
[399842931,1766734333024,-168.0,0.00017109,2]
[399842932,1766734333034,-1600.0,0.00017162,2]
[399842933,1766734333043,-540.0,0.0001723,2]
[399842934,1766734333053,-617.40005154,0.00017245,2]
[399842935,1766734333062,-166.7,0.00017274,2]
[399842936,1766734333072,-1500.0,0.00017279,2]
[399842937,1766734333081,-787.0,0.00017285,2]
[399842938,1766734333092,-152.0,0.00017289,4]
[399842939,1766734333101,-164.7,0.000173,2]
[399842940,1766734333111,-166.66,0.00017359,2]
[399842941,1766734333121,-787.0,0.00017411,2]
[399842942,1766734333131,-334.5472959,0.00017518,2]
[399842943,1766734333145,-151.0,0.00017518,2]
[399842944,1766734333155,-166.71461164,0.00017548,2]
[399842945,1766734333164,-787.0,0.00017567,2]
[399842946,1766734333175,-787.0,0.00017579,2]
[399842947,1766734333184,-500.0,0.00017589,2]
[399842948,1766734333194,-152.0,0.00017648,5]
[399842949,1766734333204,-403.0,0.000177,5]
[399842950,1766734333217,-920.05503367,0.00017753,2]
[399842951,1766734333228,-640.24385345,0.00017793,2]
[399842952,1766734333237,-787.0,0.000178,2]
[399842953,1766734333247,-3000.0,0.00017808,7]
[399842954,1766734333257,-500.0,0.00017808,2]
[399842955,1766734333267,-2000.0,0.00017827,2]
[399842956,1766734333277,-500.0,0.00017835,2]
[399842957,1766734333287,-920.05503367,0.00017836,2]
[399842958,1766734333296,-617.99663892,0.00017863,2]
[399842959,1766734333307,-920.05503367,0.00017918,2]
[399842960,1766734333317,-787.0,0.00017918,2]
[399842961,1766734333326,-920.05503367,0.00017973,2]
[399842962,1766734333336,-2999.99,0.0001798,2]
[399842963,1766734333346,-307.66104653,0.00017999,2]
[399842964,1766734333355,-168.0,0.00018,2]
[399842965,1766734333365,-214372.85418948,0.00018,2]
[399842966,1766734333374,-500.0,0.00018,2]
[399842967,1766734333385,-48950.25283694,0.00018,2]
[399842968,1766734333394,-152.0,0.00018007,6]
[399842969,1766734333403,-787.0,0.00018011,2]
[399842970,1766734333413,-920.05503367,0.00018055,2]
[399842971,1766734333423,-1000.0,0.00018082,2]
[399842972,1766734333433,-920.05503367,0.0001811,2]
[399842973,1766734333442,-920.05503367,0.00018192,2]
[399842974,1766734333452,-787.0,0.00018223,2]
[399842975,1766734333462,-920.05503367,0.00018274,2]
[399842976,1766734333471,-920.05503367,0.00018329,2]
[399842977,1766734333481,-663.93287602,0.00018341,2]
[399842978,1766734333491,-162.0,0.0001836,2]
[399842979,1766734333500,-152.0,0.00018367,7]
[399842980,1766734333510,-2500.0,0.00018375,2]
[399842981,1766734333520,-709.91,0.00018399,2]
[399842982,1766734333531,-1002.09708591,0.00018399,2]
[399842983,1766734333540,-920.05503367,0.00018411,2]
[399842984,1766734333550,-920.05503367,0.00018466,2]
[399842985,1766734333560,-920.05503367,0.00018548,2]
[399842986,1766734333571,-152.0,0.00018726,8]
[399842987,1766734333581,-1000.0,0.0001876,2]
[399842988,1766734333590,-989.0,0.000188,2]
[399842989,1766734333600,-150.98,0.000188,2]
[399842990,1766734333610,-150.98,0.000188,2]
[399842991,1766734333619,-150.98,0.000188,2]
[399842992,1766734333629,-150.98,0.000188,2]
[399842993,1766734333639,-150.98,0.000188,2]
[399842994,1766734333650,-150.98,0.000188,2]
[399842995,1766734333661,-150.98,0.000188,2]
[399842996,1766734333670,-150.98,0.000188,2]
[399842997,1766734333680,-150.98,0.000188,2]
[399842998,1766734333690,-150.98,0.000188,2]
[399842999,1766734333700,-150.98,0.000188,2]
[399843000,1766734333710,-150.98,0.000188,2]
[399843001,1766734333720,-150.98,0.000188,2]
[399843002,1766734333730,-150.98,0.000188,2]
[399843003,1766734333740,-150.98,0.000188,2]
[399843004,1766734333750,-150.98,0.000188,2]
[399843005,1766734333760,-150.98,0.000188,2]
[399843006,1766734333770,-150.98,0.000188,2]
[399843007,1766734333780,-150.98,0.000188,2]
[399843008,1766734333790,-150.98,0.000188,2]
[399843009,1766734333800,-150.98,0.000188,2]
[399843010,1766734333810,-150.98,0.000188,2]
[399843011,1766734333820,-150.98,0.000188,2]
[399843012,1766734333830,-150.98,0.000188,2]
[399843013,1766734333840,-150.98,0.000188,2]
[399843014,1766734333849,-150.98,0.000188,2]
[399843015,1766734333859,-150.98,0.000188,2]
[399843016,1766734333869,-150.98,0.000188,2]
[399843017,1766734333879,-150.98,0.000188,2]
[399843018,1766734333889,-150.98,0.000188,2]
[399843019,1766734333900,-150.98,0.000188,2]
[399843020,1766734333909,-150.98,0.000188,2]
[399843021,1766734333919,-150.98,0.000188,2]
[399843022,1766734333928,-150.98,0.000188,2]